bitfinex/quotes_BTCUSD_20241004
["timestamp","ask_amount","ask_price","bid_price","bid_amount"]
[1728017638748,0.00115277,61110.0,61109.0,0.17548359]
[1728017638987,0.00115277,61110.0,61109.0,0.01184159]
[1728017639298,0.16479177,61110.0,61109.0,0.01184159]
[1728017639660,0.16479177,61110.0,61109.0,0.007818]
[1728017639884,0.21384439,61110.0,61109.0,0.007818]
[1728017640317,0.16479177,61110.0,61109.0,0.007818]
[1728017641427,0.00115277,61110.0,61109.0,0.007818]
[1728017641640,0.21384439,61110.0,61109.0,0.01183818]
[1728017642106,0.00115277,61110.0,61109.0,0.01183818]
[1728017642320,0.05020539,61110.0,61109.0,0.01183818]
[1728017644312,0.05020539,61110.0,61109.0,0.17548018]
[1728017644757,0.05020539,61110.0,61109.0,0.17148018]
[1728017644977,0.00115277,61110.0,61109.0,0.16848018]
[1728017645420,0.00115277,61110.0,61109.0,0.17048018]
[1728017645676,0.05020539,61110.0,61109.0,0.17048018]
[1728017646348,0.00115277,61110.0,61109.0,0.17048018]
[1728017646793,0.00115277,61110.0,61109.0,0.17248018]
[1728017647295,0.00115277,61110.0,61109.0,0.17048018]
[1728017647525,0.00115277,61110.0,61109.0,0.17375266]
[1728017647961,0.00115277,61110.0,61109.0,0.17675266]
[1728017650647,0.00115277,61110.0,61109.0,0.17348018]
[1728017656538,0.001638,61112.0,61110.0,0.163639]
[1728017656953,0.001638,61112.0,61111.0,0.0040272]
[1728017657192,0.165271,61112.0,61111.0,0.0040272]
[1728017657409,0.001638,61112.0,61111.0,0.0040272]
[1728017657638,0.24784221,61112.0,61109.0,0.000818]
[1728017657852,0.417274,61111.0,61109.0,0.000818]
[1728017659229,0.418274,61111.0,61109.0,0.000818]
[1728017659670,0.44392899,61111.0,61109.0,0.000818]
[1728017659901,0.11665499,61111.0,61109.0,0.000818]
[1728017662209,0.11829099,61111.0,61109.0,0.000818]
[1728017662656,0.092636,61111.0,61109.0,0.000818]
[1728017663520,0.092636,61111.0,61110.0,0.00402597]
[1728017663734,0.11829111,61111.0,61109.0,0.000818]
[1728017663952,0.11829111,61111.0,61110.0,0.00402612]
[1728017664371,0.11729111,61111.0,61109.0,0.000818]
[1728017665281,0.11829111,61111.0,61109.0,0.000818]
[1728017666623,0.11929111,61111.0,61109.0,0.000818]
[1728017666855,0.12029111,61111.0,61109.0,0.000818]
[1728017667071,0.11929111,61111.0,61109.0,0.000818]
[1728017667563,0.12229111,61111.0,61109.0,0.000818]
[1728017669374,0.14567707,61111.0,61109.0,0.000818]
[1728017669828,0.096636,61111.0,61109.0,0.000818]
[1728017670573,0.094636,61111.0,61109.0,0.000818]
[1728017670817,0.091636,61111.0,61109.0,0.000818]
[1728017671038,0.094636,61111.0,61109.0,0.000818]
[1728017672399,0.096636,61111.0,61109.0,0.000818]
[1728017672641,0.12229108,61111.0,61109.0,0.000818]
[1728017674850,0.19587556,61111.0,61109.0,0.000818]
[1728017675296,0.12229108,61111.0,61109.0,0.000818]
[1728017675758,0.28592808,61111.0,61109.0,0.000818]
[1728017675977,0.12229108,61111.0,61109.0,0.000818]
[1728017678938,0.12229108,61111.0,61110.0,0.00402947]
[1728017679372,0.12229108,61111.0,61109.0,0.000818]
[1728017679828,0.12029108,61111.0,61109.0,0.000818]
[1728017680051,0.11729108,61111.0,61109.0,0.000818]
[1728017680276,0.12329108,61111.0,61109.0,0.000818]
[1728017680496,0.12029108,61111.0,61109.0,0.000818]
[1728017680730,0.12329108,61111.0,61109.0,0.000818]
[1728017681840,0.12029108,61111.0,61109.0,0.000818]
[1728017682053,0.12329108,61111.0,61109.0,0.000818]
[1728017685308,0.19680162,61111.0,61109.0,0.000818]
[1728017686047,0.12329108,61111.0,61109.0,0.000818]
[1728017687248,0.197636,61111.0,61109.0,0.000818]
[1728017687729,0.23729472,61111.0,61109.0,0.000818]
[1728017688698,0.23429472,61111.0,61109.0,0.000818]
[1728017688939,0.24329472,61111.0,61109.0,0.001818]
[1728017689166,0.01785404,61111.0,61109.0,0.001818]
[1728017689391,0.00885404,61111.0,61109.0,0.000818]
[1728017689881,0.02285404,61111.0,61109.0,0.001818]
[1728017690339,0.01985404,61111.0,61109.0,0.001818]
[1728017690623,0.03385404,61111.0,61109.0,0.002818]
[1728017693864,0.07405404,61111.0,61109.0,0.002818]
[1728017694810,0.1997123,61111.0,61109.0,0.002818]
[1728017697169,0.17405404,61111.0,61109.0,0.002818]
[1728017699118,0.13385404,61111.0,61109.0,0.002818]
[1728017699601,0.13385404,61111.0,61110.0,0.00404789]
[1728017700065,0.23173945,61111.0,61110.0,0.00404789]
[1728017700517,0.2433972,61111.0,61110.0,0.00404789]
[1728017700746,0.2433972,61111.0,61109.0,0.000818]
[1728017701275,0.25744125,61111.0,61110.0,0.001]
[1728017701497,0.05951179,61111.0,61110.0,0.001]
[1728017701725,0.01985404,61111.0,61110.0,0.001]
[1728017701972,0.14221407,61111.0,61109.0,0.000818]
[1728017702195,0.03385404,61111.0,61109.0,0.001818]
[1728017703386,0.14221407,61111.0,61110.0,0.00387377]
[1728017703902,0.15621407,61111.0,61110.0,0.00487377]
[1728017704144,0.24221407,61111.0,61110.0,0.00387377]
[1728017704605,0.27021407,61111.0,61110.0,0.00387377]
[1728017704826,0.24230312,61111.0,61110.0,0.00387377]
[1728017705074,0.24230312,61111.0,61110.0,0.001]
[1728017705333,0.25630312,61111.0,61110.0,0.001]
[1728017706235,0.28196095,61111.0,61110.0,0.001]
[1728017706676,0.28196095,61111.0,61110.0,0.00487377]
[1728017706902,0.28196095,61111.0,61110.0,0.001]
[1728017707341,0.25630312,61111.0,61110.0,0.001]
[1728017709743,0.15629828,61111.0,61110.0,0.001]
[1728017710011,0.25629828,61111.0,61110.0,0.001]
[1728017710208,0.28195613,61111.0,61110.0,0.001]
[1728017711451,0.05951189,61111.0,61110.0,0.001]
[1728017711683,0.03385404,61111.0,61110.0,0.001]
[1728017712390,0.03385404,61111.0,61110.0,0.0942]
[1728017712632,0.03385404,61111.0,61110.0,0.09872227]
[1728017713128,0.03385404,61111.0,61110.0,0.0942]
[1728017714840,0.05951173,61111.0,61110.0,0.0942]
[1728017715074,0.15951173,61111.0,61110.0,0.0942]
[1728017719451,0.30656609,61111.0,61110.0,0.0942]
[1728017720369,0.15951173,61111.0,61110.0,0.0942]
[1728017721480,0.13385404,61111.0,61110.0,0.0942]
[1728017722200,0.03385404,61111.0,61110.0,0.0942]
[1728017722933,0.18095909,61111.0,61110.0,0.0942]
[1728017723177,0.28095909,61111.0,61110.0,0.0942]
[1728017723395,0.129636,61111.0,61110.0,0.1723]
[1728017723624,0.129636,61111.0,61110.0,0.1768245]
[1728017724335,0.029636,61111.0,61110.0,0.1768245]
[1728017724556,0.05529373,61111.0,61110.0,0.1768245]
[1728017725018,0.27791311,61111.0,61110.0,0.1768245]
[1728017725251,0.15529373,61111.0,61110.0,0.1768245]
[1728017725770,0.129636,61111.0,61110.0,0.1768245]
[1728017725986,0.25225898,61111.0,61110.0,0.1768245]
[1728017726210,0.129636,61111.0,61110.0,0.1768245]
[1728017726656,0.25225898,61111.0,61110.0,0.1768245]
[1728017726877,0.129636,61111.0,61110.0,0.1768245]
[1728017728644,0.029636,61111.0,61110.0,0.1768245]
[1728017728884,0.15529337,61111.0,61110.0,0.1768245]
[1728017729837,0.25339278,61111.0,61110.0,0.1768245]
[1728017730079,0.129636,61111.0,61110.0,0.1768245]
[1728017730549,0.10320776,61111.0,61110.0,0.1768245]
[1728017730782,0.20320776,61111.0,61110.0,0.1768245]
[1728017731029,0.129636,61111.0,61110.0,0.1768245]
[1728017731283,0.20320758,61111.0,61110.0,0.1768245]
[1728017731518,0.129636,61111.0,61110.0,0.1768245]
[1728017732023,0.029636,61111.0,61110.0,0.1776425]
[1728017733444,0.07866476,61111.0,61110.0,0.1776425]
[1728017733884,0.17866476,61111.0,61110.0,0.1776425]
[1728017734158,0.129636,61111.0,61110.0,0.1776425]
[1728017734373,0.17865848,61111.0,61110.0,0.1776425]
[1728017734596,0.129636,61111.0,61110.0,0.1776425]
[1728017735534,0.07865374,61111.0,61110.0,0.1776425]
[1728017735765,0.17865374,61111.0,61110.0,0.1776425]
[1728017735993,0.129636,61111.0,61110.0,0.1776425]
[1728017736453,0.17864933,61111.0,61110.0,0.1776425]
[1728017737650,0.07864933,61111.0,61110.0,0.1776425]
[1728017740824,0.10430589,61111.0,61110.0,0.1776425]
[1728017741053,0.20430589,61111.0,61110.0,0.1776425]
[1728017741283,0.05529256,61111.0,61110.0,0.1776425]
[1728017741780,0.05529256,61111.0,61110.0,0.3412815]
[1728017742017,0.04129256,61111.0,61110.0,0.3412815]
[1728017742251,0.007636,61111.0,61110.0,0.3412815]
[1728017742716,0.008636,61111.0,61110.0,0.3412815]
[1728017742955,0.001636,61111.0,61110.0,0.3402815]
[1728017743183,0.002636,61111.0,61110.0,0.3402815]
[1728017745356,0.02829016,61111.0,61110.0,0.3402815]
[1728017749701,0.002636,61111.0,61110.0,0.3402815]
[1728017752659,0.02829012,61111.0,61110.0,0.3402815]
[1728017756506,0.002636,61111.0,61110.0,0.3402815]
[1728017756970,0.02829045,61111.0,61110.0,0.3402815]
[1728017762970,0.002636,61111.0,61110.0,0.3402815]
[1728017765921,0.02829018,61111.0,61110.0,0.3402815]
[1728017769184,0.002636,61111.0,61110.0,0.3402815]
[1728017771987,0.02829034,61111.0,61110.0,0.3402815]
[1728017773607,0.02829034,61111.0,61110.0,0.1766425]
[1728017782067,0.04529365,61111.0,61110.0,0.1766425]
[1728017782517,0.01963931,61111.0,61110.0,0.1766425]
[1728017786528,0.04529389,61111.0,61110.0,0.1766425]
[1728017787448,0.04529389,61111.0,61110.0,0.3402815]
[1728017787902,0.09440075,61111.0,61110.0,0.3402815]
[1728017788326,0.07739744,61111.0,61110.0,0.3402815]
[1728017788540,0.09437726,61111.0,61110.0,0.3402815]
[1728017789918,0.09442991,61111.0,61110.0,0.3402815]
[1728017792190,0.07745009,61111.0,61110.0,0.3402815]
[1728017792408,0.0944252,61111.0,61110.0,0.3402815]
[1728017792880,0.09442517,61111.0,61110.0,0.3402815]
[1728017794759,0.04526566,61111.0,61110.0,0.3402815]
[1728017795226,0.01961108,61111.0,61110.0,0.3402815]
[1728017795722,0.06876843,61111.0,61110.0,0.3402815]
[1728017798305,0.09442338,61111.0,61110.0,0.3402815]
[1728017799351,0.0774483,61111.0,61110.0,0.3402815]
[1728017799568,0.09443278,61111.0,61110.0,0.3402815]
[1728017799813,0.0944321,61111.0,61110.0,0.3402815]
[1728017802630,0.0944321,61111.0,61110.0,0.1766425]
[1728017803763,0.06877715,61111.0,61110.0,0.1766425]
[1728017804005,0.06877715,61111.0,61110.0,0.3402815]
[1728017804006,0.01962048,61111.0,61110.0,0.3402815]
[1728017804279,0.01962048,61111.0,61110.0,0.3632815]
[1728017805199,0.01862048,61111.0,61110.0,0.3632815]
[1728017805429,0.01962048,61111.0,61110.0,0.3692815]
[1728017805665,0.01862048,61111.0,61110.0,0.3632815]
[1728017806119,0.01962048,61111.0,61110.0,0.3692815]
[1728017806362,0.01962048,61111.0,61110.0,0.3632815]
[1728017806660,0.020606,61111.0,61110.0,0.3722815]
[1728017806889,0.018606,61111.0,61110.0,0.3632815]
[1728017807796,0.019606,61111.0,61110.0,0.3692815]
[1728017808269,0.04525902,61111.0,61110.0,0.3722815]
[1728017808503,0.04525902,61111.0,61110.0,0.3692815]
[1728017808723,0.04625902,61111.0,61110.0,0.3782815]
[1728017808952,0.04625902,61111.0,61110.0,0.3692815]
[1728017809206,0.04525902,61111.0,61110.0,0.3632815]
[1728017809432,0.04725902,61111.0,61110.0,0.3782815]
[1728017810148,0.04525902,61111.0,61110.0,0.3692815]
[1728017811069,0.04425902,61111.0,61110.0,0.3632815]
[1728017811553,0.04425902,61111.0,61110.0,0.3782815]
[1728017811554,0.04625902,61111.0,61110.0,0.3782815]
[1728017811776,0.04525902,61111.0,61110.0,0.3722815]
[1728017812237,0.04525902,61111.0,61110.0,0.3692815]
[1728017812469,0.04625902,61111.0,61110.0,0.3782815]
[1728017812965,0.04525902,61111.0,61110.0,0.3722815]
[1728017813430,0.04625902,61111.0,61110.0,0.3782815]
[1728017814176,0.04623773,61111.0,61110.0,0.3782815]
[1728017814402,0.02058471,61111.0,61110.0,0.3782815]
[1728017814630,0.01958471,61111.0,61110.0,0.3722815]
[1728017814857,0.02058471,61111.0,61110.0,0.3782815]
[1728017815577,0.001638,61112.0,61111.0,0.363036]
[1728017816040,0.001638,61112.0,61111.0,0.36753123]
[1728017817650,0.001638,61112.0,61111.0,0.36553123]
[1728017817898,0.002638,61112.0,61111.0,0.37253123]
[1728017818595,0.0292881,61112.0,61111.0,0.38153123]
[1728017820443,0.0292881,61112.0,61111.0,0.38353123]
[1728017822066,0.0292881,61112.0,61111.0,0.38153123]
[1728017823626,0.003638,61112.0,61111.0,0.38153123]
[1728017824323,0.003638,61112.0,61111.0,0.38353123]
[1728017826405,0.003638,61112.0,61111.0,0.38434923]
[1728017830246,0.02928704,61112.0,61111.0,0.38434923]
[1728017830488,0.001638,61120.0,61119.0,0.186615]
[1728017830725,0.001638,61120.0,61119.0,0.36973209]
[1728017830972,0.001638,61120.0,61119.0,0.3669537]
[1728017831211,0.12265794,61142.0,61119.0,0.3669537]
[1728017831212,0.24520421,61135.0,61121.0,0.186609]
[1728017831447,0.24520421,61127.0,61121.0,0.36778027]
[1728017831675,0.24520421,61127.0,61121.0,0.36894669]
[1728017832153,0.24520421,61135.0,61134.0,0.163575]
[1728017832651,0.04906317,61146.0,61140.0,0.163559]
[1728017832882,0.04906317,61148.0,61140.0,0.163559]
[1728017833107,0.29426738,61149.0,61140.0,0.16797536]
[1728017833348,0.24520421,61149.0,61140.0,0.16797536]
[1728017834045,0.1,61148.0,61140.0,0.16797536]
[1728017834283,0.24520421,61149.0,61140.0,0.16797536]
[1728017835422,0.001638,61153.0,61140.0,0.1712462]
[1728017835886,0.001638,61153.0,61140.0,0.17197536]
[1728017836150,0.001638,61153.0,61140.0,0.17597536]
[1728017837322,0.02563961,61143.0,61140.0,0.17597536]
[1728017837557,0.001638,61153.0,61140.0,0.17597536]
[1728017838012,0.0272775,61153.0,61140.0,0.17597536]
[1728017839171,0.001638,61153.0,61140.0,0.17597536]
[1728017839402,0.02727957,61141.0,61140.0,0.17597536]
[1728017839625,0.00164,61141.0,61140.0,0.17597536]
[1728017843122,0.00164,61141.0,61140.0,0.25657536]
[1728017844029,0.02727965,61141.0,61140.0,0.25657536]
[1728017849074,0.02727965,61141.0,61140.0,0.35187536]
[1728017851121,0.00164,61141.0,61140.0,0.35187536]
[1728017856376,0.027279,61141.0,61140.0,0.35187536]
[1728017858666,0.00164,61141.0,61140.0,0.35187536]
[1728017874191,0.01871645,61141.0,61140.0,0.35187536]
[1728017874877,0.01871703,61141.0,61140.0,0.35187536]
[1728017875312,0.04435681,61141.0,61140.0,0.35187536]
[1728017877496,0.04435681,61141.0,61140.0,0.01241636]
[1728017878188,0.01871703,61141.0,61140.0,0.01241636]
[1728017878906,0.01871703,61141.0,61140.0,0.00841636]
[1728017879135,0.02071703,61141.0,61140.0,0.00841636]
[1728017879365,0.01871703,61141.0,61140.0,0.00841636]
[1728017879883,0.01971703,61141.0,61140.0,0.00841636]
[1728017880111,0.01971703,61141.0,61140.0,0.00441636]
[1728017880347,0.06884552,61141.0,61140.0,0.00441636]
[1728017880572,0.06884552,61141.0,61140.0,0.00436352]
[1728017880817,0.07084552,61141.0,61140.0,0.00436352]
[1728017881037,0.07941059,61141.0,61135.0,0.65014721]
[1728017881271,0.07741059,61141.0,61140.0,0.00436352]
[1728017881512,0.01712194,61140.0,61137.0,0.163565]
[1728017881980,0.01712194,61139.0,61137.0,0.163565]
[1728017882218,0.01712194,61138.0,61137.0,0.163565]
[1728017883644,0.01712194,61138.0,61137.0,0.002]
[1728017883823,0.01712194,61138.0,61137.0,0.264167]
[1728017884315,0.01712194,61138.0,61137.0,0.266167]
[1728017884754,0.01712194,61138.0,61137.0,0.264167]
[1728017884975,0.01712194,61138.0,61137.0,0.268167]
[1728017885197,0.01712194,61138.0,61137.0,0.1026]
[1728017885425,0.01812194,61138.0,61137.0,0.1026]
[1728017885649,0.01712194,61138.0,61137.0,0.1026]
[1728017885873,0.04276405,61138.0,61137.0,0.1026]
[1728017886088,0.04276405,61138.0,61137.0,0.008]
[1728017886779,0.02564211,61138.0,61137.0,0.008]
[1728017887007,0.04271989,61138.0,61137.0,0.008]
[1728017887465,0.01707778,61138.0,61137.0,0.008]
[1728017888161,0.01707778,61138.0,61137.0,0.004]
[1728017888622,0.01707778,61138.0,61137.0,0.002]
[1728017890222,0.01708595,61138.0,61137.0,0.167566]
[1728017890473,0.02564232,61138.0,61137.0,0.004]
[1728017890714,0.042727,61138.0,61137.0,0.004]
[1728017891600,0.042727,61138.0,61137.0,0.00837217]
[1728017891828,0.0427018,61138.0,61137.0,0.004]
[1728017892060,0.0427018,61138.0,61137.0,0.00837217]
[1728017892289,0.0427018,61138.0,61137.0,0.004]
[1728017892536,0.0427018,61138.0,61137.0,0.00837217]
[1728017892769,0.0427018,61138.0,61137.0,0.004]
[1728017892996,0.0427018,61138.0,61137.0,0.00837217]
[1728017893278,0.0427018,61138.0,61137.0,0.004]
[1728017893486,0.02564232,61138.0,61137.0,0.00837217]
[1728017893712,0.02564232,61138.0,61137.0,0.004]
[1728017893713,0.04273669,61138.0,61137.0,0.004]
[1728017893930,0.04273669,61138.0,61137.0,0.00837217]
[1728017894157,0.04273669,61138.0,61137.0,0.004]
[1728017894633,0.04273669,61138.0,61137.0,0.00837217]
[1728017894865,0.04273669,61138.0,61137.0,0.004]
[1728017895373,0.04273669,61138.0,61137.0,0.002]
[1728017895827,0.04273669,61138.0,61132.0,0.163579]
[1728017896042,0.04273669,61138.0,61133.0,0.24520421]
[1728017896043,0.01709437,61137.0,61133.0,0.24520421]
[1728017896255,0.01709437,61136.0,61133.0,0.00437417]
[1728017896473,0.01709437,61135.0,61133.0,0.00437417]
[1728017896927,0.02764232,61138.0,61133.0,0.00437417]
[1728017896928,0.01709437,61134.0,61133.0,0.00437417]
[1728017897840,0.01709437,61134.0,61133.0,0.00537417]
[1728017898291,0.01709437,61134.0,61133.0,0.00437417]
[1728017898721,0.01709437,61134.0,61133.0,0.00837417]
[1728017900093,0.05071709,61141.0,61133.0,0.00837417]
[1728017900327,0.01707126,61140.0,61133.0,0.17195117]
[1728017900558,0.01707035,61139.0,61133.0,0.17195117]
[1728017900775,0.01707035,61138.0,61133.0,0.17195117]
[1728017901003,0.01707035,61137.0,61133.0,0.16795117]
[1728017901228,0.01707035,61136.0,61133.0,0.16795117]
[1728017901451,0.01707035,61135.0,61133.0,0.16795117]
[1728017901692,0.06171709,61141.0,61133.0,0.16795117]
[1728017901693,0.01707035,61134.0,61133.0,0.16795117]
[1728017903114,0.01707035,61134.0,61133.0,0.16995117]
[1728017903569,0.01707035,61134.0,61133.0,0.34595117]
[1728017904043,0.01707035,61134.0,61133.0,0.34795117]
[1728017906823,0.02564337,61138.0,61134.0,0.163574]
[1728017907283,0.02564337,61138.0,61135.0,0.00438621]
[1728017907284,0.01704613,61137.0,61135.0,0.00438621]
[1728017907503,0.01704613,61136.0,61135.0,0.00438621]
[1728017910099,0.001636,61138.0,61135.0,0.00438621]
[1728017910326,0.01706586,61137.0,61135.0,0.00438621]
[1728017910554,0.01706586,61136.0,61135.0,0.00438621]
[1728017911415,0.0427091,61136.0,61135.0,0.00438621]
[1728017916735,0.02564324,61136.0,61135.0,0.00438621]
[1728017916966,0.04272294,61136.0,61135.0,0.00438621]
[1728017917421,0.0170797,61136.0,61135.0,0.00438621]
[1728017919563,0.0170797,61136.0,61133.0,0.176]
[1728017919803,0.05068327,61138.0,61135.0,0.00414782]
[1728017920023,0.01706809,61137.0,61134.0,0.00414832]
[1728017920245,0.05068327,61138.0,61133.0,0.176]
[1728017920490,0.01706809,61136.0,61135.0,0.00414782]
[1728017920733,0.02006809,61136.0,61134.0,0.00414832]
[1728017920968,0.006,61136.0,61135.0,0.00414782]
[1728017921184,0.02007063,61136.0,61135.0,0.00414782]
[1728017921648,0.01707063,61136.0,61133.0,0.176]
[1728017921931,0.05074073,61137.0,61135.0,0.00414782]
[1728017922139,0.01807176,61136.0,61134.0,0.00414832]
[1728017922361,0.01707176,61135.0,61133.0,0.176]
[1728017922597,0.01707176,61134.0,61133.0,0.176]
[1728017924179,0.01707176,61134.0,61133.0,0.177]
[1728017924636,0.01707176,61134.0,61133.0,0.178]
[1728017931638,0.06617649,61134.0,61133.0,0.178]
[1728017931867,0.06621748,61134.0,61133.0,0.178]
[1728017932324,0.01707176,61134.0,61133.0,0.178]
[1728017932546,0.04271565,61134.0,61133.0,0.178]
[1728017932768,0.06621748,61134.0,61133.0,0.178]
[1728017933475,0.01707176,61134.0,61133.0,0.178]
[1728017933700,0.06621748,61134.0,61133.0,0.178]
[1728017933923,0.06618564,61134.0,61133.0,0.178]
[1728017935794,0.06619199,61134.0,61133.0,0.178]
[1728017936540,0.06619199,61134.0,61133.0,0.18192441]
[1728017936754,0.01703992,61134.0,61133.0,0.18192441]
[1728017936979,0.06619426,61134.0,61133.0,0.18192441]
[1728017938613,0.06619426,61134.0,61133.0,0.08302441]
[1728017938836,0.01703992,61134.0,61133.0,0.08302441]
[1728017939975,0.01703992,61134.0,61133.0,0.08102441]
[1728017940202,0.02103992,61134.0,61133.0,0.08102441]
[1728017940447,0.09477143,61134.0,61133.0,0.08102441]
[1728017940679,0.09277143,61134.0,61133.0,0.08102441]
[1728017940910,0.09479134,61134.0,61133.0,0.08102441]
[1728017942787,0.07775142,61134.0,61133.0,0.08102441]
[1728017943017,0.09280888,61134.0,61133.0,0.08102441]
[1728017943235,0.09380888,61134.0,61133.0,0.08102441]
[1728017943460,0.09180888,61134.0,61133.0,0.08102441]
[1728017943675,0.09280888,61134.0,61133.0,0.08102441]
[1728017943946,0.11845333,61134.0,61133.0,0.08102441]
[1728017944153,0.12008933,61134.0,61133.0,0.08102441]
[1728017944995,0.09444488,61134.0,61133.0,0.08102441]
[1728017946216,0.07738742,61134.0,61133.0,0.08102441]
[1728017946445,0.09445163,61134.0,61133.0,0.08102441]
[1728017948048,0.12009606,61134.0,61133.0,0.08102441]
[1728017948682,0.04634464,61134.0,61133.0,0.08102441]
[1728017949381,0.10303185,61134.0,61133.0,0.08102441]
[1728017949837,0.02928043,61134.0,61133.0,0.08102441]
[1728017951949,0.0463294,61134.0,61133.0,0.08102441]
[1728017952619,0.02928043,61134.0,61133.0,0.08102441]
[1728017952845,0.04633099,61134.0,61133.0,0.17962441]
[1728017954641,0.12007722,61134.0,61133.0,0.17962441]
[1728017954859,0.1200786,61134.0,61133.0,0.17962441]
[1728017955524,0.12007492,61134.0,61133.0,0.17962441]
[1728017957077,0.12007492,61134.0,61133.0,0.34320141]
[1728017960246,0.09443049,61134.0,61133.0,0.34320141]
[1728017962040,0.07738361,61134.0,61133.0,0.34320141]
[1728017962249,0.09434456,61134.0,61133.0,0.34320141]
[1728017964777,0.11999596,61134.0,61133.0,0.34320141]
[1728017965475,0.10303501,61134.0,61133.0,0.34320141]
[1728017965706,0.11999596,61134.0,61133.0,0.34320141]
[1728017968671,0.10303501,61134.0,61133.0,0.34320141]
[1728017968896,0.11999618,61134.0,61133.0,0.34320141]
[1728017970559,0.09435209,61134.0,61133.0,0.34320141]
[1728017972279,0.09435279,61134.0,61133.0,0.34320141]
[1728017972782,0.0933528,61134.0,61133.0,0.34320141]
[1728017973462,0.0933528,61134.0,61133.0,0.34420141]
[1728017973648,0.0933528,61134.0,61133.0,0.17962441]
[1728017973892,0.11899686,61134.0,61133.0,0.17962441]
[1728017974112,0.11899686,61134.0,61133.0,0.18062441]
[1728017974328,0.11899686,61134.0,61133.0,0.17962441]
[1728017974553,0.11799686,61134.0,61133.0,0.17962441]
[1728017974795,0.11799887,61134.0,61133.0,0.18062441]
[1728017975733,0.10103699,61134.0,61133.0,0.34520141]
[1728017975934,0.04423863,61134.0,61133.0,0.34520141]
[1728017976195,0.0764507,61134.0,61133.0,0.34520141]
[1728017976668,0.02728006,61134.0,61133.0,0.34520141]
[1728017977114,0.001636,61134.0,61133.0,0.34520141]
[1728017977595,0.001636,61134.0,61133.0,0.33220141]
[1728017982004,0.165211,61134.0,61133.0,0.16862441]
[1728017982861,0.001636,61134.0,61133.0,0.07002441]
[1728017983123,0.001636,61134.0,61133.0,0.06902441]
[1728017983341,0.02083831,61134.0,61133.0,0.06902441]
[1728017983558,0.01883831,61134.0,61133.0,0.06902441]
[1728017983753,0.01883831,61134.0,61133.0,0.06802441]
[1728017984009,0.02283831,61134.0,61133.0,0.06802441]
[1728017984222,0.04848255,61134.0,61133.0,0.06802441]
[1728017984434,0.04648255,61134.0,61133.0,0.06802441]
[1728017984851,0.04848255,61134.0,61133.0,0.06802441]
[1728017985297,0.04648255,61134.0,61133.0,0.06802441]
[1728017985484,0.04848255,61134.0,61133.0,0.06802441]
[1728017985969,0.04848255,61134.0,61133.0,0.16062441]
[1728017986438,0.04648255,61134.0,61133.0,0.16062441]
[1728017986928,0.04848255,61134.0,61133.0,0.16062441]
[1728017987373,0.02283831,61134.0,61133.0,0.16062441]
[1728017987591,0.07200004,61134.0,61133.0,0.16062441]
[1728017988035,0.07000004,61134.0,61133.0,0.16062441]
[1728017988479,0.07200004,61134.0,61133.0,0.16062441]
[1728017989146,0.07000004,61134.0,61133.0,0.16062441]
[1728017989378,0.0709942,61134.0,61133.0,0.16062441]
[1728017989607,0.05379189,61134.0,61133.0,0.16062441]
[1728017989835,0.06900404,61134.0,61133.0,0.16062441]
[1728017990299,0.07000404,61134.0,61133.0,0.16062441]
[1728017990573,0.09564808,61134.0,61133.0,0.16144341]
[1728017991675,0.07000404,61134.0,61133.0,0.16144341]
[1728017992157,0.05279189,61134.0,61133.0,0.16144341]
[1728017993005,0.07000741,61134.0,61133.0,0.16144341]
[1728017994074,0.07001298,61134.0,61133.0,0.16144341]
[1728017994562,0.095657,61134.0,61133.0,0.16144341]
[1728017998034,0.07001298,61134.0,61133.0,0.16144341]
[1728018000222,0.06801298,61134.0,61133.0,0.16144341]
[1728018000434,0.07001298,61134.0,61133.0,0.32502041]
[1728018000711,0.01985709,61134.0,61133.0,0.32502041]
[1728018000976,0.01884763,61134.0,61133.0,0.32502041]
[1728018001176,0.04449157,61134.0,61133.0,0.32502041]
[1728018002327,0.01884763,61134.0,61133.0,0.32502041]
[1728018002538,0.01884763,61134.0,61133.0,0.32602041]
[1728018002990,0.01884763,61134.0,61133.0,0.32502041]
[1728018003211,0.01884763,61134.0,61133.0,0.33302041]
[1728018003212,0.002636,61134.0,61133.0,0.33302041]
[1728018003421,0.002636,61134.0,61133.0,0.33802041]
[1728018003422,0.01978869,61134.0,61133.0,0.33802041]
[1728018003911,0.01978589,61134.0,61133.0,0.33302041]
[1728018004124,0.02078589,61134.0,61133.0,0.34102041]
[1728018006179,0.18436089,61134.0,61133.0,0.02074341]
[1728018006400,0.23351281,61134.0,61133.0,0.02074341]
[1728018006659,0.28266473,61134.0,61133.0,0.02074341]
[1728018006865,0.28273854,61134.0,61133.0,0.02074341]
[1728018007091,0.28073854,61134.0,61133.0,0.00474341]
[1728018007308,0.28069664,61134.0,61133.0,0.00474341]
[1728018007520,0.1824347,61134.0,61133.0,0.00474341]
[1728018008002,0.25613018,61134.0,61133.0,0.00474341]
[1728018008208,0.26013018,61134.0,61133.0,0.00474341]
[1728018010517,0.1864347,61134.0,61133.0,0.00474341]
[1728018010760,0.26012225,61134.0,61133.0,0.00474341]
[1728018010964,0.1864347,61134.0,61133.0,0.00474341]
[1728018011148,0.26012233,61134.0,61133.0,0.00474341]
[1728018011402,0.1864347,61134.0,61133.0,0.00474341]
[1728018011622,0.26011941,61134.0,61133.0,0.00474341]
[1728018011833,0.26011953,61134.0,61133.0,0.00474341]
[1728018012063,0.1864347,61134.0,61133.0,0.00474341]
[1728018012297,0.26011886,61134.0,61133.0,0.00474341]
[1728018013474,0.21207954,61134.0,61133.0,0.00474341]
[1728018014168,0.19485584,61134.0,61133.0,0.00474341]
[1728018014428,0.21212305,61134.0,61133.0,0.00474341]
[1728018017132,0.21212305,61134.0,61133.0,0.08524341]
[1728018017364,0.18647821,61134.0,61133.0,0.08524341]
[1728018017580,0.3092032,61134.0,61133.0,0.08524341]
[1728018018008,0.3092032,61134.0,61133.0,0.081319]
[1728018018432,0.18647821,61134.0,61133.0,0.081319]
[1728018018879,0.28464992,61134.0,61133.0,0.081319]
[1728018019103,0.28464992,61134.0,61133.0,0.0847495]
[1728018019104,0.26010426,61134.0,61133.0,0.0847495]
[1728018019527,0.26010091,61134.0,61133.0,0.0847495]
[1728018019764,0.26010089,61134.0,61133.0,0.0847495]
[1728018020656,0.28574367,61134.0,61133.0,0.0847495]
[1728018020904,0.28572403,61134.0,61133.0,0.0847495]
[1728018021576,0.26118527,61134.0,61133.0,0.0847495]
[1728018021798,0.28572403,61134.0,61133.0,0.0847495]
[1728018022024,0.28572403,61134.0,61133.0,0.081319]
[1728018022251,0.28572403,61134.0,61133.0,0.0847495]
[1728018024524,0.28572545,61134.0,61133.0,0.0847495]
[1728018025002,0.28572537,61134.0,61133.0,0.0847495]